Cogmind - Beta 13 X3 @@@ ROGUE MODE // 2024.02.20 @ 16:57:33 // AFD2019/Pay2Buy Player: H3-RMN Result: Destroyed by B-75 Beast with Heavy Plasma Cannon Performance ------------- Evolutions (4) 2000 Regions Visited (10) 2000 Robots Destroyed (72) 360 Value Destroyed (2830) 2830 Prototype IDs (9) 180 Alien Tech Used (0) 0 Bonus (205) 205 TOTAL SCORE: 7575 Bonus ------- High Alert Combat Kills 205 Cogmind --------- Core Integrity 0/850 Matter 174/300 Energy 99/100 System Corruption 14% Temperature Cool (12) Movement Core (50) Location -6/Extension Parts ------- > --- POWER (2) -------- (None) > --- PROPULSION (3) --- (None) > --- UTILITY (8) ------ (None) > --- WEAPON (2) ------- (None) > --- INVENTORY (10) --- Q-thruster Precision Matter Filter Advanced Beam Cannon Enhanced Coil Gun Plasma Cutter Fire Trap Fire Trap Peak State ------------ > --- POWER ------------ Hybrid Deuterium Engine F-cell Engine > --- PROPULSION ------- Armored Medium Treads > --- UTILITY ---------- Improved Coolant Injector Precision Matter Filter Advanced Kinecellerator > --- WEAPON ----------- High-powered Shock Rifle Hardcell Cannon > --- INVENTORY -------- Q-thruster Advanced Beam Cannon Enhanced Coil Gun Plasma Cutter Dirty Bomb Trap Dirty Bomb Trap Fire Trap Fire Trap Fire Trap [Rating: 52] Favorites ----------- Power Ion Engine Engine Ion Engine Power Core Micro Nuclear Core Reactor Fusion Reactor Propulsion Light Treads Treads Light Treads Wheel Armored Wheel Hover Unit Improved Antigrav System Flight Unit Makeshift Flight Unit Utility Seismic Detector Device Seismic Detector Storage High-capacity Matter Pod Protection Hardened Medium Armor Plating Weapon Enhanced Autogun Energy Gun Small Laser Energy Cannon Advanced Beam Cannon Ballistic Gun Enhanced Autogun Ballistic Cannon Heavy Gauss Cannon Special Weapon Plasma Cutter Slashing Weapon Greatsword Build | -11 -10 -10 -8 -7 -7 -7 -6 -6 -6 -6 ------- Run | Yrd Mat Sub Mat Fac Low Low Fac Was Fac Ext Slots Evolved 8 | . . . 4 2 . . 2 . . . Power 1 | . . . . . . . 1 . . . Propulsion 1 | . . . 1 . . . . . . . Utility 6 | . . . 3 2 . . 1 . . . Weapon . | . . . . . . . . . . . Parts Attached 30 | . 9 . 6 3 6 . 5 . 1 . Power 1 | . . . . . 1 . . . . . Engine 1 | . . . . . 1 . . . . . Core . | . . . . . . . . . . . Reactor . | . . . . . . . . . . . Propulsion 10 | . 1 . 4 2 3 . . . . . Treads 2 | . . . . 2 . . . . . . Leg . | . . . . . . . . . . . Wheel 3 | . 1 . 2 . . . . . . . Hover 1 | . . . . . 1 . . . . . Flight 4 | . . . 2 . 2 . . . . . Utility 5 | . 2 . 2 1 . . . . . . Device 2 | . . . 2 . . . . . . . Storage 1 | . . . . 1 . . . . . . Processor . | . . . . . . . . . . . Hackware . | . . . . . . . . . . . Protection 2 | . 2 . . . . . . . . . Artifact . | . . . . . . . . . . . Weapon 14 | . 6 . . . 2 . 5 . 1 . Energy Gun 1 | . . . . . . . 1 . . . Energy Cannon 2 | . 2 . . . . . . . . . Ballistic Gun 6 | . 3 . . . 2 . . . 1 . Ballistic Cannon 3 | . . . . . . . 3 . . . Launcher . | . . . . . . . . . . . Special Weapon 2 | . 1 . . . . . 1 . . . Impact Weapon . | . . . . . . . . . . . Slashing Weapon . | . . . . . . . . . . . Piercing Weapon . | . . . . . . . . . . . Special Melee Weapon . | . . . . . . . . . . . Unidentified Prototypes . | . . . . . . . . . . . Parts Lost 27 | . 4 1 1 6 5 2 7 1 . . Power 5 | . . 1 . . 1 . 3 . . . Propulsion 9 | . 1 . 1 2 3 1 1 . . . Utility 5 | . 1 . . 3 . . . 1 . . Weapon 8 | . 2 . . 1 1 1 3 . . . Highest Loss Streak 4 | . 1 1 1 4 4 2 3 1 . . To Critical Strikes . | . . . . . . . . . . . Average Slot Usage (%) 71 | . 96 100 83 59 29 13 32 3 . . Engine 8 | . 14 14 . . 5 . 1 . . . Treads 10 | . 14 14 . 11 . . 10 . . . Wheel 8 | . 13 14 1 5 . . . . . . Flight 2 | . . . 24 . 7 . . . . . Device 11 | . 14 14 25 20 . . 5 3 . . Storage 1 | . 1 . . 5 . . . . . . Protection 6 | . 9 14 9 2 . . . . . . Energy Cannon 5 | . 9 14 4 . . . . . . . Ballistic Gun 11 | . 17 14 4 . 13 5 4 . . . Naked Turns 206 | . . . . 57 28 1 6 15 55 44 Heaviest Build 46 | 14 21 21 24 28 8 3 46 1 5 . Greatest Support 97 | 10 12 12 30 59 18 12 97 3 3 3 Greatest Overweight (x) 8 | 1 1 1 1 1 . . 8 . 1 . Average Overweight (x) . | 1 . 1 . . . . . . . . Largest Inventory Capacity 10 | 10 10 10 10 10 10 10 10 10 10 10 Average Capacity 10 | 10 10 10 10 10 10 10 10 10 10 10 Most Carried 10 | 2 9 10 10 10 10 10 10 8 8 7 Average Carried 7 | 2 6 9 9 9 8 10 9 8 7 7 Final Capacity 10 | 10 10 10 10 10 10 10 10 10 10 10 Final Carried 10 | 2 9 10 9 10 10 10 8 8 7 7 Class Distribution -------------------- 91% | Mutant 8% | Gladiator Dominant Class ---------------- Mutant | -10/Materials Mutant | -10/Subcaves Gladiator | -8/Materials Gladiator | -7/Factory Mutant | -7/Lower Caves Mutant | -7/Lower Caves Mutant | -6/Factory Mutant | -6/Waste Mutant | -6/Factory Mutant | -6/Extension Resources | -11 -10 -10 -8 -7 -7 -7 -6 -6 -6 -6 ----------- Run | Yrd Mat Sub Mat Fac Low Low Fac Was Fac Ext Matter Collected 2037 | 155 912 131 106 30 203 . 500 . . . Remotely . | . . . . . . . . . . . Salvage Created 2734 | 155 1000 347 228 117 222 26 639 . . . Parts . | . . . . . . . . . . . Haulers Intercepted 2 | . 2 . . . . . . . . . Recyclers Shooed . | . . . . . . . . . . . Parts Field Recycled . | . . . . . . . . . . . Retrieved Matter . | . . . . . . . . . . . Parts Self-Destructed . | . . . . . . . . . . . Prevented . | . . . . . . . . . . . Kills | -11 -10 -10 -8 -7 -7 -7 -6 -6 -6 -6 ------- Run | Yrd Mat Sub Mat Fac Low Low Fac Was Fac Ext Combat Hostiles Destroyed 52 | . 15 5 4 5 6 1 16 . . . Melee 6 | . . . . 5 . . 1 . . . Guns 29 | . 11 3 2 . 6 1 6 . . . Cannons 15 | . 4 1 2 . . . 8 . . . AOE 1 | . . . . . . . 1 . . . Classes Destroyed 16 | 2 7 3 1 . 1 . 2 . . . Worker 2 | . 2 . . . . . . . . . Builder 5 | . 4 . . . . . 1 . . . Tunneler 4 | 3 1 . . . . . . . . . Hauler 2 | . 2 . . . . . . . . . Recycler 1 | 1 . . . . . . . . . . Minesweeper 1 | . . . . . 1 . . . . . Mechanic 1 | . 1 . . . . . . . . . Operator 3 | . 2 . 1 . . . . . . . Watcher 1 | . 1 . . . . . . . . . Swarmer 14 | . . 1 . 5 4 1 3 . . . Saboteur 1 | . . . . . . . 1 . . . Grunt 28 | . 15 . 2 . 2 . 9 . . . Brawler 1 | . . . 1 . . . . . . . Sentry 4 | . . 1 1 . . . 2 . . . Programmer 1 | . . . . . . . 1 . . . Subdweller 3 | . . 3 . . . . . . . . Best Kill Streak 5 | 4 5 2 3 3 5 1 3 . . . Combat Bots Only 4 | . 3 2 3 3 4 1 3 . . . Max Kills in Single Turn 2 | 1 2 1 1 1 1 1 1 . . . Gunslinging . | . . . . . . . . . . . Exploded 1 | . . . . . . . 1 . . . Melee 1 | . . . . 1 . . 1 . . . Uniques/NPCs Destroyed . | . . . . . . . . . . . Combat | -11 -10 -10 -8 -7 -7 -7 -6 -6 -6 -6 -------- Run | Yrd Mat Sub Mat Fac Low Low Fac Was Fac Ext Hostile Shots Fired 540 | . 47 25 24 116 74 33 206 2 9 4 Missed 193 | . 14 6 9 42 26 21 65 1 7 2 Damage Taken 5248 | . 519 260 206 1000 510 123 2526 30 16 58 Core 1626 | . 42 15 59 395 195 55 761 30 16 58 Absorbed by Shields . | . . . . . . . . . . . Core Remaining (%) 68 | 100 . 77 89 . . 7 . . . . Volleys Fired 325 | 8 181 31 14 . 21 1 68 . 1 . Largest 2 | 2 2 2 2 . 2 1 2 . 1 . Hottest 125 | 65 81 93 93 . 50 25 125 . 30 . Shots Fired 513 | 16 248 62 28 . 42 1 115 . 1 . Gun 309 | 16 155 31 14 . 42 1 49 . 1 . Cannon 202 | . 93 31 14 . . . 64 . . . Launcher . | . . . . . . . . . . . Special 2 | . . . . . . . 2 . . . Kinetic 349 | 8 143 31 14 . 42 1 109 . 1 . Thermal 89 | 8 34 31 14 . . . 2 . . . Explosive . | . . . . . . . . . . . Electromagnetic 75 | . 71 . . . . . 4 . . . Robot Hit Streak 24 | 4 6 24 8 . 11 2 8 . . . Robot Miss Streak 5 | 2 3 4 1 . 3 . 5 . . . Penetration Max . | . . . . . . . . . . . Secondary Targets 4 | . 2 . . . 2 . . . . . Max Gunslinging Chain 1 | . 1 . . . 1 . . . . . Shots Hit Robots 236 | 10 72 49 11 9 25 1 59 . . . Core Hits 99 | 5 32 12 6 4 11 1 28 . . . Critical Kills 1 | . . 1 . . . . . . . . Critical Parts Destroyed 1 | . . . . . . . 1 . . . Critical Strikes 2 | . . 1 . . . . 1 . . . Meltdown 1 | . . 1 . . . . . . . . Destroy 1 | . . . . . . . 1 . . . Melee Attacks 35 | . . . 11 24 . . . . . . Impact . | . . . . . . . . . . . Slashing 35 | . . . 11 24 . . . . . . Piercing . | . . . . . . . . . . . Sneak Attacks 1 | . . . 1 . . . . . . . Combat Hostiles . | . . . . . . . . . . . Follow-up Attacks . | . . . . . . . . . . . Damage Inflicted 5801 | 124 1469 912 350 484 432 19 2011 . . . Guns 2715 | 124 867 399 110 . 432 19 764 . . . Cannons 2407 | . 556 513 124 . . . 1214 . . . Explosions 46 | . 46 . . . . . . . . . Melee 600 | . . . 116 484 . . . . . . Ramming 10 | . . . . . . . 10 . . . Kinetic 3755 | 47 847 399 110 . 432 19 1901 . . . Thermal 869 | 77 132 513 124 . . . 23 . . . Explosive . | . . . . . . . . . . . Electromagnetic 567 | . 490 . . . . . 77 . . . Impact . | . . . . . . . . . . . Slashing 600 | . . . 116 484 . . . . . . Piercing . | . . . . . . . . . . . Highest Corruption 14 | . . . . 1 1 1 4 14 14 14 Average Corruption 3 | . . . . 1 1 1 3 9 14 14 Corruption Purged . | . . . . . . . . . . . Corruption Blocked . | . . . . . . . . . . . Effects 11 | . . . . . 1 . 5 1 2 2 Message Errors 2 | . . . . . . . . . . 2 Matter Fused 1 | . . . . . . . . . 1 . Heat Flow Errors 1 | . . . . . . . 1 . . . Data Loss (minor) 3 | . . . . . . . 2 1 . . Data Loss (major) 2 | . . . . . 1 . 1 . . . Misdirections 1 | . . . . . . . . . 1 . Weapon Failures 1 | . . . . . . . 1 . . . Overload Shots . | . . . . . . . . . . . Overflow Damage 204 | . 6 . 76 70 . . 52 . . . Projectiles 58 | . 6 . . . . . 52 . . . Explosions . | . . . . . . . . . . . Melee 146 | . . . 76 70 . . . . . . Knockbacks 14 | . . . . . . . 14 . . . Impact . | . . . . . . . . . . . Kinetic 14 | . . . . . . . 14 . . . Secondary . | . . . . . . . . . . . Self-Inflicted Damage 264 | . 126 . . . . . 138 . . . Shots 4 | . 2 . . . . . 2 . . . Rammed 1 | . . . . . . . 1 . . . Targets Rammed 1 | . . . . . . . 1 . . . Kicked . | . . . . . . . . . . . Crushed . | . . . . . . . . . . . Highest Temperature 342 | 52 330 62 334 . 26 . 342 . . . Average Temperature 81 | 24 65 25 170 . 14 . 105 . . . Received Heat Transfer 1287 | . 225 24 72 57 102 66 723 . 6 12 Effects 5 | . 2 . 1 . . . 2 . . . Energy Bleed 2 | . 1 . 1 . . . . . . . Interference 3 | . 1 . . . . . 2 . . . Siege Activations . | . . . . . . . . . . . Robots Corrupted 1 | . 1 . . . . . . . . . Combat Hostiles . | . . . . . . . . . . . Parts Fried . | . . . . . . . . . . . Impact Corruptions . | . . . . . . . . . . . Robots Melted 1 | . . 1 . . . . . . . . Combat Hostiles 1 | . . 1 . . . . . . . . Parts Melted . | . . . . . . . . . . . Heat Transferred 1644 | 175 248 925 222 . . . 74 . . . Parts Sabotaged 4 | . . . . . . . 4 . . . Parts Stolen . | . . . . . . . . . . . Parts Stripped . | . . . . . . . . . . . Power Chain Reactions . | . . . . . . . . . . . Alert | -11 -10 -10 -8 -7 -7 -7 -6 -6 -6 -6 ------- Run | Yrd Mat Sub Mat Fac Low Low Fac Was Fac Ext Peak Influence 822 | 20 822 . 643 686 . . 569 204 201 128 Initial 291 | . 13 . 250 291 . . 263 199 142 98 Average 439 | 7 514 . 467 448 . . 347 198 171 98 Maximum Alert Level 3 | . 3 . 2 2 . . 2 1 1 . Low Security (%) 12 | 100 10 . . . . . 4 75 94 100 Level 1 38 | . 28 . 26 41 . . 73 25 5 . Level 2 30 | . 27 . 73 58 . . 21 . . . Level 3 18 | . 34 . . . . . . . . . Level 4 . | . . . . . . . . . . . Level 5 . | . . . . . . . . . . . High Security . | . . . . . . . . . . . Max Security . | . . . . . . . . . . . Squads Dispatched 19 | . 4 . 3 2 . . 9 . 1 . Investigation 8 | . 3 . . 1 . . 3 . 1 . Extermination 1 | . . . . . . . 1 . . . Reinforcement 4 | . 1 . 1 . . . 2 . . . Assault 3 | . . . 1 1 . . 1 . . . Garrison 3 | . . . 1 . . . 2 . . . Intercept . | . . . . . . . . . . . Searches Triggered . | . . . . . . . . . . . Construction Impeded 1 | . . . . . . . 1 . . . Haulers Reinforced . | . . . . . . . . . . . Active Scanning Responses . | . . . . . . . . . . . Cargo Convoy Interrupts . | . . . . . . . . . . . Stealth | -11 -10 -10 -8 -7 -7 -7 -6 -6 -6 -6 --------- Run | Yrd Mat Sub Mat Fac Low Low Fac Was Fac Ext Distress Signals 4 | . 3 . . . . . . . 1 . Communications Jammed . | . . . . . . . . . . . Distress Signals . | . . . . . . . . . . . Times Spotted 127 | . 28 8 19 15 7 3 35 6 2 4 Peak Tracking Total 11 | . 4 5 10 6 4 2 11 6 2 3 Tactical Retreats 16 | . 2 1 3 2 . . 7 . 1 . Traps | -11 -10 -10 -8 -7 -7 -7 -6 -6 -6 -6 ------- Run | Yrd Mat Sub Mat Fac Low Low Fac Was Fac Ext Traps Triggered 2 | . . 1 . . . . 1 . . . Indirectly . | . . . . . . . . . . . Trap Hack Attempts . | . . . . . . . . . . . Triggered . | . . . . . . . . . . . Disarmed . | . . . . . . . . . . . Reprogrammed . | . . . . . . . . . . . Reused 3 | . . . . . . . 2 . 1 . Traps Extracted . | . . . . . . . . . . . Installed 3 | . . . . . . . 2 . 1 . Triggered 4 | . . . . . 1 . 2 . 1 . Most Traps Carried 5 | . . . . . 5 5 5 3 3 2 Machines | -11 -10 -10 -8 -7 -7 -7 -6 -6 -6 -6 ---------- Run | Yrd Mat Sub Mat Fac Low Low Fac Was Fac Ext Machines Disabled 60 | . 36 . 7 3 1 . 12 . 1 . Max in Single Turn 3 | . 3 . 1 1 1 . 2 . 1 . Garrison Access 3 | . . . 1 1 . . 1 . . . Machines Repaired . | . . . . . . . . . . . Machines Dismantled 3 | . 2 . . . . . 1 . . . Machines Sabotaged . | . . . . . . . . . . . Overloaded Fab Kills . | . . . . . . . . . . . Hacking | -11 -10 -10 -8 -7 -7 -7 -6 -6 -6 -6 --------- Run | Yrd Mat Sub Mat Fac Low Low Fac Was Fac Ext Machines Accessed 14 | . 7 . 1 1 1 . 3 . 1 . Terminals 11 | . 7 . 1 . . . 2 . 1 . Fabricators . | . . . . . . . . . . . Repair Stations . | . . . . . . . . . . . Recycling Units . | . . . . . . . . . . . Scanalyzers . | . . . . . . . . . . . Garrison Access 2 | . . . . 1 . . 1 . . . Total Hacks 49 | . 24 . 2 3 3 . 14 . 3 . Successful 18 | . 9 . 1 . 3 . 4 . 1 . Failed 31 | . 15 . 1 3 . . 10 . 2 . Catastrophic 11 | . 6 . 1 . . . 4 . . . Database Lockouts . | . . . . . . . . . . . Manual 17 | . 12 . 2 . . . 3 . . . Terminals 39 | . 24 . 2 . . . 10 . 3 . Fabricators . | . . . . . . . . . . . Repair Stations . | . . . . . . . . . . . Recycling Units . | . . . . . . . . . . . Scanalyzers . | . . . . . . . . . . . Garrison Access 7 | . . . . 3 . . 4 . . . Terminal Hacks 16 | . 7 . 1 . 3 . 4 . 1 . Record 3 | . . . . . 3 . . . . . Robot Analysis 1 | . 1 . . . . . . . . . Prototype ID Bank 1 | . 1 . . . . . . . . . Open Door 1 | . . . . . . . . . 1 . Branch Access Points 1 | . . . 1 . . . . . . . Terminal Index 2 | . 1 . . . . . 1 . . . Alert Level 2 | . 2 . . . . . . . . . Unreport Threat 2 | . . . . . . . 2 . . . Locate Traps 1 | . 1 . . . . . . . . . Zone Layout 2 | . 1 . . . . . 1 . . . Fabricator Hacks . | . . . . . . . . . . . Repair Station Hacks . | . . . . . . . . . . . Recycling Unit Hacks . | . . . . . . . . . . . Scanalyzer . | . . . . . . . . . . . Garrison Access Hacks . | . . . . . . . . . . . Unauthorized Hacks 2 | . 2 . . . . . . . . . Terminals 2 | . 2 . . . . . . . . . Sabotage 2 | . 2 . . . . . . . . . Fabricators . | . . . . . . . . . . . Repair Stations . | . . . . . . . . . . . Recycling Units . | . . . . . . . . . . . Scanalyzers . | . . . . . . . . . . . Garrison Access . | . . . . . . . . . . . Data Cores Recovered . | . . . . . . . . . . . Used . | . . . . . . . . . . . Hacking Detections 13 | . 7 . 1 1 . . 3 . 1 . Full Trace Events 8 | . 3 . . 1 . . 3 . 1 . Feedback Events 1 | . . . . 1 . . . . . . Corruption 1 | . . . . 1 . . . . . . Feedback Blocked . | . . . . . . . . . . . Robot Schematics Acquired . | . . . . . . . . . . . Robots Built . | . . . . . . . . . . . Authchips . | . . . . . . . . . . . Time . | . . . . . . . . . . . Total Robot Build Rating . | . . . . . . . . . . . Part Schematics Acquired . | . . . . . . . . . . . Parts Built . | . . . . . . . . . . . Authchips . | . . . . . . . . . . . Time . | . . . . . . . . . . . Total Part Build Rating . | . . . . . . . . . . . Parts Repaired . | . . . . . . . . . . . Time . | . . . . . . . . . . . Parts Recycled . | . . . . . . . . . . . Recycled Matter . | . . . . . . . . . . . Retrieved Matter . | . . . . . . . . . . . Retrieved Components . | . . . . . . . . . . . Parts Scanalyzed . | . . . . . . . . . . . Part Schematics Acquired . | . . . . . . . . . . . Parts Damaged . | . . . . . . . . . . . Bothacking | -11 -10 -10 -8 -7 -7 -7 -6 -6 -6 -6 ------------ Run | Yrd Mat Sub Mat Fac Low Low Fac Was Fac Ext Used RIF Installer . | . . . . . . . . . . . Robots Hacked . | . . . . . . . . . . . Non-combat . | . . . . . . . . . . . Combat . | . . . . . . . . . . . Robot Hacks Applied . | . . . . . . . . . . . Relay Couplers Released 4 | . . . 1 2 . . 1 . . . Machine Destruction 4 | . . . 1 2 . . 1 . . . Fabnet Peak Effective % . | . . . . . . . . . . . Robots Rewired . | . . . . . . . . . . . Allies Hacked . | . . . . . . . . . . . Hacks Repelled . | . . . . . . . . . . . Allies | -11 -10 -10 -8 -7 -7 -7 -6 -6 -6 -6 -------- Run | Yrd Mat Sub Mat Fac Low Low Fac Was Fac Ext Total Allies . | . . . . . . . . . . . Largest Group . | . . . . . . . . . . . Highest-Rated Group . | . . . . . . . . . . . Highest-Rated Ally . | . . . . . . . . . . . Total Orders . | . . . . . . . . . . . Ally Attacks . | . . . . . . . . . . . Total Damage . | . . . . . . . . . . . Kills . | . . . . . . . . . . . Allies Corrupted . | . . . . . . . . . . . Allies Melted . | . . . . . . . . . . . Intel | -11 -10 -10 -8 -7 -7 -7 -6 -6 -6 -6 ------- Run | Yrd Mat Sub Mat Fac Low Low Fac Was Fac Ext Robot Analysis Total 1 | . 1 . . . . . . . . . Derelict Logs Recovered . | . . . . . . . . . . . Drone Launches . | . . . . . . . . . . . Drone Recoveries . | . . . . . . . . . . . Exploration | -11 -10 -10 -8 -7 -7 -7 -6 -6 -6 -6 ------------- Run | Yrd Mat Sub Mat Fac Low Low Fac Was Fac Ext Turns Passed 3784 | 65 1671 360 247 266 260 56 721 36 58 44 Spaces Moved 2759 | 47 927 220 309 258 308 91 337 71 104 87 Core 501 | . . . . 115 52 2 70 71 104 87 Treads 271 | . . . . 4 . . 267 . . . Legs . | . . . . . . . . . . . Wheels 1360 | 47 927 220 27 139 . . . . . . Hover 112 | . . . . . 23 89 . . . . Flight 515 | . . . 282 . 233 . . . . . Fastest Speed 42 | 95 90 105 42 50 42 50 50 50 50 50 Average Speed 86 | 95 99 105 47 76 54 59 147 50 50 50 Slowest Speed 450 | 95 105 105 105 160 66 60 450 50 100 50 Overloaded Moves . | . . . . . . . . . . . Propulsion Burnouts . | . . . . . . . . . . . Robots Hopped 3 | . . . 3 . . . . . . . Cave-ins Triggered . | . . . . . . . . . . . Exploration Rate (%) 30 | 4 98 24 36 11 45 14 13 63 5 22 Regions Visited 10 Branch Regions 4 Pre-discovered Areas 2 | . . . . . 2 . . . . . Known Exits Taken . | . . . . . . . . . . . Unknown Exits Taken 8 | 1 1 1 1 1 1 1 . . 1 . Scrap Searched . | . . . . . . . . . . . Spaces Dug 2 | . . . 2 . . . . . . . Terrain Destroyed 360 | . 160 . 43 . . . 157 . . . Melee 2 | . . . 2 . . . . . . . Projectile 27 | . . . . . . . 27 . . . AOE 331 | . 160 . 41 . . . 130 . . . Terrain Rammed . | . . . . . . . . . . . Walls Destroyed . | . . . . . . . . . . . Machines Disabled . | . . . . . . . . . . . Actions | -11 -10 -10 -8 -7 -7 -7 -6 -6 -6 -6 --------- Run | Yrd Mat Sub Mat Fac Low Low Fac Was Fac Ext Total 3634 | 54 1465 297 369 290 375 91 428 70 108 87 Wait 445 | . 336 46 25 3 35 . . . . . Move 2744 | 46 926 219 302 257 307 90 337 70 103 87 Hop 3 | . . . 3 . . . . . . . Pick Up 15 | . 2 1 3 2 6 . 1 . . . Fast Attach 1 | . . . . . . . 1 . . . Attach 21 | . 5 . 4 1 6 . 4 . 1 . Detach 8 | . 2 . 2 . . . 3 . 1 . Swap 8 | . 4 . 2 2 . . . . . . Drop 8 | . . . 3 1 . . 3 . 1 . Fire 325 | 8 181 31 14 . 21 1 68 . 1 . Melee 35 | . . . 11 24 . . . . . . Ram 1 | . . . . . . . 1 . . . Kick . | . . . . . . . . . . . Crush . | . . . . . . . . . . . Escape Stasis . | . . . . . . . . . . . Rewire . | . . . . . . . . . . . Trap 3 | . . . . . . . 2 . 1 . Miscellaneous 17 | . 9 . . . . . 8 . . . Route ------- -11/Scrapyard -10/Materials (discovered 5 exits: [*Mat x3] / [*Min] / [*Sub]) -10/Subcaves -8/Materials -7/Factory -7/Lower Caves -7/Lower Caves -6/Factory -6/Waste -6/Factory -6/Extension History --------- Turn | Location | Event 5 | -11/Scrapyard | Discovered new exit (range 14) 66 | -11/Scrapyard | Entered Materials 338 | -10/Materials | Build established: Mutant 518 | -10/Materials | Discovered new exit (range 15) 869 | -10/Materials | Discovered new exit (range 8) 1479 | -10/Materials | Discovered new exit (range 10) 1589 | -10/Materials | Discovered new exit (range 4) 1732 | -10/Materials | Discovered new exit (range 4) 1737 | -10/Materials | Entered Subcaves 1823 | -10/Subcaves | Ambushed by Subdwellers from Twisted Machinery 2091 | -10/Subcaves | Discovered new exit (range 4) 2097 | -10/Subcaves | Entered Materials 2097 | -8/Materials | Evolved 4 slots: Propulsion x1, Utility x3 2154 | -8/Materials | Garrison activated, responded to threat 2296 | -8/Materials | Met 7R-MNS 2317 | -8/Materials | Discovered new exit (range 16) 2344 | -8/Materials | Entered Factory 2344 | -7/Factory | Evolved 2 slots: Utility x2 2522 | -7/Factory | Build established: Gladiator 2553 | -7/Factory | Released all parts (5) 2583 | -7/Factory | Lost 4 parts (2n1u1w) 2590 | -7/Factory | Core integrity fell below 50% 2609 | -7/Factory | Discovered new exit (range 2) 2610 | -7/Factory | Entered Lower Caves 2751 | -7/Lower Caves | Encountered a Warlord checkpoint 2808 | -7/Lower Caves | Learned location of Armory (-3) 2838 | -7/Lower Caves | Discovered new exit (range 9) 2849 | -7/Lower Caves | Attracted the attention of an 0b10 checkpoint 2851 | -7/Lower Caves | Build established: Mutant 2868 | -7/Lower Caves | Core integrity fell below 20% 2870 | -7/Lower Caves | Entered another Lower Caves area 2895 | -7/Lower Caves | Lost 4 parts (1p2n1w) 2897 | -7/Lower Caves | Discovered new exit (range 10) 2917 | -7/Lower Caves | Attracted the attention of an 0b10 checkpoint 2926 | -7/Lower Caves | Entered Factory 2926 | -6/Factory | Evolved 2 slots: Power x1, Utility x1 3618 | -6/Factory | Core integrity fell below 50% 3643 | -6/Factory | Discovered new exit (range 16) 3644 | -6/Factory | Lost 3 parts (2p1w) 3645 | -6/Factory | Core integrity fell below 20% 3647 | -6/Factory | Sucked down chute 3647 | -6/Factory | Entered Waste 3652 | -6/Waste | Spotted C-40 Crusher 3660 | -6/Waste | Spotted C-40 Crusher 3662 | -6/Waste | EMP discharged 3662 | -6/Waste | System corruption reached 10% 3662 | -6/Waste | Spotted C-40 Crusher 3664 | -6/Waste | Spotted C-40 Crusher 3668 | -6/Waste | Crushed by Compactor (1 part destroyed) 3671 | -6/Waste | Spotted C-40 Crusher 3675 | -6/Waste | Discovered new exit (range 15) 3675 | -6/Waste | Spotted C-40 Crusher 3683 | -6/Waste | Entered Factory 3738 | -6/Factory | Discovered new exit (range 6) 3741 | -6/Factory | Entered Extension 3778 | -6/Extension | Spotted B-75 Beast 3784 | -6/Extension | Spotted B-75 Beast 3785 | -6/Extension | Destroyed by B-75 Beast with Heavy Plasma Cannon Last Messages --------------- 03692_ O-24 Administrator sends out distress signal. 03697_ Slug penetrates Terminal. 03697_ Terminal disabled. 03697_ Slug penetrates Terminal. 03704_ Dropped Dirty Bomb Trap. 03704_ Installed Dirty Bomb Trap. 03725_ System corrupted: Matter fused (-5). 03738_ Connecting with Door Terminal... 03738_ Current location identified: Factory >>Open(Door) Sealed Blast Doors opened. 03738_ ALERT: Suspicious activity at Terminal F002. Dispatching Investigation squad. 03738_ EXIT=FOUND LOCATION=UNKNOWN GOAL=ESCAPE 03746_ T-07 Excavator exits Transfer Station. 03749_ M LI%ANJK8|TNYNRFRYDJAUKZD,GNHZJHF8JJ :YT,NTXEC| Map ----- +----------------------------------------------------+ | ?????????????????????????????????????????????????? | | ?????????????????????????????????????????????????? | | ?????????????????????????????????????????????????? | | ?????????????????????????????????????????????????? | | ?????????????????????????????????????????????????? | | ?????????????????????????????????????????????????? | | ?????????????????????????????????????????????????? | | ?????????????????????????????????????????????????? | | ?????????????????????????????????????????????????? | | ?????????????????????????????????????????????????? | | ?????????????????????????????????????????????????? | | ?????????????????????????????????????????????????? | | ?????????????????????????????????????????????????? | | ?????????????????????????????????????????????????? | | ???????????????????????????????#??##?????????????? | | ?????????????????????????????? ### ##????????????? | | ?????????????????????????????? ""Y Y ???????????? | | ?????????????????????????????" " ???????????? | | ????????????????????????????? ??????????? | | ???????????????????????????? ??????????? | | ############################ ??????????? | | ?????????? | | k k?????????? | | u ????????? | | R ????????? | | u @ ????????? | | ###########################; BB BB????????? | | ????????????????????????????? BB BB????????? | | ??????????????????????????????? ?????????? | | ????????????????????????????????? ?????????? | | ??????????????????????????????????? ??????????? | | ?????????????????????????????????????"#??????????? | | ?????????????????????????????????????????????????? | | ?????????????????????????????????????????????????? | | | | | | | | | | | | | | | | | | | | | | | | | | | | | | | | | +----------------------------------------------------+ Best States ------------- Heat Dissipation 37 Coolant Potential 80 Energy Generation 24 Energy Capacity 1200 Matter Stores 500 Matter Capacity 500 Sight Range 16 Terrain Scan Density 10 Additional Mass Support 9 Armor Coverage 225 Melee Speed Boost 20 Evasion (%) 61 Recoil Reduction 3 Matter Filtering 50 Kinecelleration 50 Item Schematics ----------------- None Robot Schematics ------------------ None Fabricated ------------ Nothing Alien Tech Used ----------------- None Achievements -------------- None Challenges ------------ None Cogshop Purchases (40) ------------------------ Lgt. Treads (Loot Box) Wheel (Loot Box) Hcp. Matter Pod (Loot Box) Seismic Detector (Loot Box) Sml. Laser (Loot Box) Enh. Autogun (Loot Box) Lgt. Armor Plating (Loot Box) Arm. Wheel (Loot Box) Ion Engine (599) Trap Scanner (Loot Box) Enh. Autogun (Loot Box) Plasma Cutter (675) Lgt. EM Pulse Cannon (695) Datajack (Loot Box) Adv. Beam Cannon (702) Microactuators (Loot Box) Hrd. Medium Armor Plating (Loot Box) Imp. VTOL Module (Loot Box) Mak. Flight Unit (1294) Mak. Flight Unit (1294) Mic. Nuclear Core (863) Adv. Weight Redist. System (667) Greatsword (1534) Imp. Remote Datajack (Loot Box) Imp. Medium Treads (Loot Box) Hpw. Shock Rifle (Loot Box) Imp. Antigrav System (Loot Box) Hvy. Gauss Cannon (Loot Box) Arm. Medium Treads (Loot Box) Fusion Reactor (Loot Box) Q-thruster (Loot Box) KE Penetrator (Loot Box) Hvy. Treads (Loot Box) Hardcell Cannon (Loot Box) Imp. Coolant Injector (1155) Enh. Coil Gun (Loot Box) Adv. Kinecellerator (Loot Box) Prc. Matter Filter (Loot Box) F-cell Engine (990) Hyb. Deuterium Engine (890) Game ------ Seed DispersionRiotDrive Manual? 0 Play Time 00:51:48 Cumulative 548.9 hours Start 2024.02.20 @ 15:51:15 End 2024.02.20 @ 16:57:33 Sessions 1 Manual Loads 0 Difficulty Rogue Special Mode AFD2019/Pay2Buy Game No. 214 Rogue 193 Adventurer 3 Explorer 18 Win Type - Total 13 Types 8/2/1/1/0/1/0/0/0 Lore% 85 Gallery% 94 Achievement% 82 Wizard Run 0 Options --------- Layout 2 ASCII 0 Keyboard 0 Movement Numpad Keybinds 0 Fullscreen 0 Font 20/SmallcapsGlow Map View 50x44 Zoom Use 0% Tactical HUD 1 Map Filters NONE Filters NONE Steam X RUN: c46b307e-6d62-4d05-bdbc-9141f10eb666